[Event "2nd Kalyan Dombivali 2019"]
[Site "Kalyan"]
[Date "2019.02.01"]
[Round "7"]
[White "Kulkarni, Vikramaditya"]
[Black "Snehal, Bhosale"]
[Result "1-0"]
[ECO "A28"]
[WhiteElo "2345"]
[BlackElo "2135"]
[Annotator "ChessBase"]
[PlyCount "135"]
[EventDate "2019.01.28"]
[EventType "swiss"]
[EventRounds "10"]
[EventCountry "IND"]
[SourceTitle "playchess.com"]
[Source "ChessBase"]
[SourceQuality "1"]
[TimeControl "5400+30"]

1. c4 {[%emt 0:00:00]} e5 {[%emt 0:02:46]} 2. Nc3 {[%emt 0:00:00]} Nf6 {[%emt 0:00:10]} 3. Nf3 {[%emt 0:00:00]} Nc6 {[%emt 0:02:41]} 4. e3 {[%emt 0:00:11]} Bb4 {[%emt 0:08:25]} 5. Qc2 {[%emt 0:01:02]} d6 {[%emt 0:03:53]} 6. Ne2 {[%emt 0:00:46]} Qe7 {[%emt 0:09:57]} 7. a3 {[%emt 0:01:43]} Ba5 {[%emt 0:01:52]} 8. b4 {[%emt 0:00:41]} Bb6 {[%emt 0:00:14]} 9. Nc3 {[%emt 0:01:28]} a5 {[%emt 0:03:53]} 10. Rb1 {[%emt 0:07:09]} axb4 {[%emt 0:02:31]} 11. axb4 {[%emt 0:00:17]} O-O {[%emt 0:03:01]} 12. Bd3 {[%emt 0:03:18]} h6 {[%emt 0:18:51]} 13. b5 {[%emt 0:25:42]} Nd8 {[%emt 0:03:59]} 14. O-O {[%emt 0:04:00]} Bg4 {[%emt 0:04:04]} 15. Ne1 {[%emt 0:05:43]} e4 {[%emt 0:05:23]} 16. Bxe4 {[%emt 0:08:19]} Nxe4 {[%emt 0:00:56]} 17. Nd5 {[%emt 0:00:06]} Qe8 {[%emt 0:07:02]} 18. Nxb6 {[%emt 0:02:43]} cxb6 {[%emt 0:00:50]} 19. f3 {[%emt 0:00:13]} Bf5 {[%emt 0:03:34]} 20. fxe4 {[%emt 0:00:15]} Bxe4 {[%emt 0:00:20]} 21. d3 {[%emt 0:00:26]} Bh7 {[%emt 0:01:48]} 22. g4 {[%emt 0:07:03]} f5 {[%emt 0:01:43]} 23. gxf5 {[%emt 0:02:27]} Bxf5 {[%emt 0:00:31]} 24. Qg2 {[%emt 0:07:52]} Rf6 {[%emt 0:02:34]} 25. Rf3 {[%emt 0:00:44]} Rg6 {[%emt 0:05:50]} 26. Rg3 {[%emt 0:00:08]} Rxg3 {[%emt 0:00:05]} 27. Qxg3 {[%emt 0:01:52]} Ne6 {[%emt 0:02:31]} 28. Bb2 {[%emt 0:05:40]} Qh5 {[%emt 0:00:49]} 29. Ng2 {[%emt 0:06:45]} Qe2 {[%emt 0:01:33]} 30. e4 {[%emt 0:00:08]} Qc2 {[%emt 0:01:56]} 31. Ra1 {[%emt 0:00:36]} Rxa1+ {[%emt 0:00:26]} 32. Bxa1 {[%emt 0:00:03]} Ng5 {[%emt 0:00:24]} 33. exf5 {[%emt 0:03:35]} Qd1+ {[%emt 0:00:34]} 34. Kf2 {[%emt 0:01:52]} Qxa1 {[%emt 0:00:02]} 35. Qxd6 {[%emt 0:00:31]} Qd1 {[%emt 0:00:51]} 36. Qd5+ {[%emt 0:00:29]} Kh8 {[%emt 0:00:24]} 37. h4 {[%emt 0:00:21]} Nh3+ {[%emt 0:00:43]} 38. Kg3 {[%emt 0:00:01]} Ng1 {[%emt 0:00:22]} 39. Qe4 {[%emt 0:00:50]} Qf1 {[%emt 0:00:35]} 40. Qe8+ {[%emt 0:02:41]} Kh7 {[%emt 0:00:01]} 41. Qg6+ {[%emt 0:00:05]} Kh8 {[%emt 0:00:05]} 42. Qe8+ {[%emt 0:00:03]} Kh7 {[%emt 0:00:04]} 43. Qe3 {[%emt 0:00:19]} Ne2+ {[%emt 0:00:36]} 44. Kh2 {[%emt 0:00:02]} Qd1 {[%emt 0:01:31]} 45. h5 {[%emt 0:01:47]} Kg8 {[%emt 0:00:45]} 46. f6 {[%emt 0:01:05]} gxf6 {[%emt 0:00:21]} 47. Qe8+ {[%emt 0:00:02]} Kg7 {[%emt 0:00:41]} 48. Qg6+ {[%emt 0:00:02]} Kf8 {[%emt 0:00:15]} 49. Qxf6+ {[%emt 0:00:13]} Ke8 {[%emt 0:00:11]} 50. Qe6+ {[%emt 0:00:06]} Kd8 {[%emt 0:00:29]} 51. Qxb6+ {[%emt 0:00:02]} Kc8 {[%emt 0:00:43]} 52. Qe6+ {[%emt 0:00:33]} Kd8 {[%emt 0:00:15]} 53. Qf6+ {[%emt 0:01:38]} Ke8 {[%emt 0:00:23]} 54. Qe6+ {[%emt 0:01:37]} Kd8 {[%emt 0:00:01]} 55. Qe3 {[%emt 0:00:11]} Kc7 {[%emt 0:00:31]} 56. c5 {[%emt 0:00:29]} Kd8 {[%emt 0:02:04]} 57. b6 {[%emt 0:00:26]} Kd7 {[%emt 0:00:24]} 58. Nh4 {[%emt 0:01:22]} Qe1 {[%emt 0:00:59]} 59. Nf5 {[%emt 0:00:46]} Qf1 {[%emt 0:00:22]} 60. Ng3 {[%emt 0:00:54]} Nxg3 {[%emt 0:00:20]} 61. Kxg3 {[%emt 0:00:08]} Qf6 {[%emt 0:00:21]} 62. Qe4 {[%emt 0:00:22]} Qa1 {[%emt 0:00:45]} 63. Qxb7+ {[%emt 0:00:12]} Ke8 {[%emt 0:00:13]} 64. Qe4+ {[%emt 0:00:16]} Kd8 {[%emt 0:00:28]} 65. Qd5+ {[%emt 0:00:09]} Kc8 {[%emt 0:00:13]} 66. Qe6+ {[%emt 0:00:21]} Kd8 {[%emt 0:00:11]} 67. Qd6+ {[%emt 0:00:23]} Ke8 {[%emt 0:00:05]} 68. Qb8+ {[%emt 0:00:03]} 1-0

[Event "2nd Kalyan Dombivali 2019"]
[Site "Kalyan"]
[Date "2019.02.01"]
[Round "7"]
[White "Kathmale, Sameer"]
[Black "Gusain, Himal"]
[Result "1/2-1/2"]
[ECO "B46"]
[WhiteElo "2312"]
[BlackElo "2371"]
[Annotator "ChessBase"]
[PlyCount "175"]
[EventDate "2019.01.28"]
[EventType "swiss"]
[EventRounds "10"]
[EventCountry "IND"]
[SourceTitle "playchess.com"]
[Source "ChessBase"]
[SourceQuality "1"]
[TimeControl "5400+30"]

1. e4 {[%emt 0:00:00]} c5 {[%emt 0:00:14]} 2. Nf3 {[%emt 0:00:22]} e6 {[%emt 0:00:34]} 3. d4 {[%emt 0:00:43]} cxd4 {[%emt 0:00:16]} 4. Nxd4 {[%emt 0:00:05]} Nc6 {[%emt 0:00:12]} 5. Nc3 {[%emt 0:01:28]} a6 {[%emt 0:00:28]} 6. f4 {[%emt 0:01:55]} Qc7 {[%emt 0:00:22]} 7. Nxc6 {[%emt 0:01:21]} Qxc6 {[%emt 0:04:20]} 8. Bd3 {[%emt 0:00:30]} b5 {[%emt 0:00:14]} 9. Qe2 {[%emt 0:00:37]} Bb7 {[%emt 0:00:47]} 10. Bd2 {[%emt 0:00:09]} Nf6 {[%emt 0:06:48]} 11. e5 {[%emt 0:05:33]} Nd5 {[%emt 0:00:30]} 12. Be4 {[%emt 0:00:17]} Qc5 {[%emt 0:06:14]} 13. Qf3 {[%emt 0:02:56]} Be7 {[%emt 0:08:39]} 14. Nxd5 {[%emt 0:04:39]} Bxd5 {[%emt 0:03:06]} 15. Bxd5 {[%emt 0:00:07]} Qxd5 {[%emt 0:04:10]} 16. Qxd5 {[%emt 0:01:08]} exd5 {[%emt 0:00:05]} 17. Be3 {[%emt 0:06:45]} d6 {[%emt 0:00:32]} 18. exd6 {[%emt 0:01:26]} Bxd6 {[%emt 0:00:06]} 19. O-O-O {[%emt 0:00:12]} O-O-O {[%emt 0:02:26]} 20. Rxd5 {[%emt 0:02:08]} Bc7 {[%emt 0:00:24]} 21. Rxd8+ {[%emt 0:05:42]} Rxd8 {[%emt 0:00:30]} 22. g3 {[%emt 0:00:17]} h5 {[%emt 0:00:35]} 23. Rd1 {[%emt 0:01:20]} Re8 {[%emt 0:00:10]} 24. Kd2 {[%emt 0:02:59]} h4 {[%emt 0:02:36]} 25. Ke2 {[%emt 0:01:32]} hxg3 {[%emt 0:00:18]} 26. hxg3 {[%emt 0:00:05]} g5 {[%emt 0:01:42]} 27. fxg5 {[%emt 0:01:57]} Bxg3 {[%emt 0:00:05]} 28. Rf1 {[%emt 0:01:01]} Re7 {[%emt 0:00:58]} 29. c3 {[%emt 0:12:24]} Be5 {[%emt 0:00:22]} 30. Kd3 {[%emt 0:02:41]} Kb7 {[%emt 0:02:48]} 31. Bc5 {[%emt 0:02:18]} Rd7+ {[%emt 0:00:24]} 32. Ke4 {[%emt 0:01:32]} Bc7 {[%emt 0:00:10]} 33. Rf5 {[%emt 0:03:45]} Bd8 {[%emt 0:01:01]} 34. Be3 {[%emt 0:01:19]} Kc6 {[%emt 0:00:47]} 35. Rc5+ {[%emt 0:01:29]} Kb7 {[%emt 0:06:05]} 36. Rd5 {[%emt 0:01:31]} Rxd5 {[%emt 0:11:22]} 37. Kxd5 {[%emt 0:00:16]} Kc7 {[%emt 0:00:04]} 38. b3 {[%emt 0:01:29]} Be7 {[%emt 0:02:19]} 39. c4 {[%emt 0:01:21]} bxc4 {[%emt 0:00:17]} 40. bxc4 {[%emt 0:00:06]} Kb7 {[%emt 0:06:31]} 41. Bf4 {[%emt 0:01:56]} Kb6 {[%emt 0:00:22]} 42. Be3+ {[%emt 0:00:32]} Kb7 {[%emt 0:01:47]} 43. c5 {[%emt 0:04:33]} Kc7 {[%emt 0:02:00]} 44. Bc1 {[%emt 0:00:25]} Kb7 {[%emt 0:05:17]} 45. Bf4 {[%emt 0:02:01]} Bd8 {[%emt 0:00:28]} 46. c6+ {[%emt 0:10:04]} Kc8 {[%emt 0:00:21]} 47. Kc5 {[%emt 0:00:27]} Ba5 {[%emt 0:00:54]} 48. Be3 {[%emt 0:04:10]} Kc7 {[%emt 0:01:15]} 49. Bf4+ {[%emt 0:02:12]} Kc8 {[%emt 0:00:08]} 50. a4 {[%emt 0:00:35]} Bd8 {[%emt 0:00:35]} 51. Bd2 {[%emt 0:00:32]} Bc7 {[%emt 0:00:32]} 52. Be3 {[%emt 0:02:08]} Ba5 {[%emt 0:01:48]} 53. Bf4 {[%emt 0:02:12]} Bd8 {[%emt 0:00:31]} 54. Kd5 {[%emt 0:00:16]} Be7 {[%emt 0:03:19]} 55. Ke4 {[%emt 0:00:25]} Bd8 {[%emt 0:01:52]} 56. Kf5 {[%emt 0:02:07]} Be7 {[%emt 0:00:06]} 57. Be5 {[%emt 0:02:46]} Bb4 {[%emt 0:01:27]} 58. Bf4 {[%emt 0:00:01]} Be7 {[%emt 0:00:09]} 59. Ke4 {[%emt 0:01:20]} Kd8 {[%emt 0:02:16]} 60. Kf5 {[%emt 0:01:26]} Kc8 {[%emt 0:00:07]} 61. Bg3 {[%emt 0:00:45]} Bb4 {[%emt 0:00:21]} 62. Be5 {[%emt 0:00:35]} Be7 {[%emt 0:04:29]} 63. Bf4 {[%emt 0:01:38]} Kd8 {[%emt 0:00:41]} 64. Ke5 {[%emt 0:00:50]} Kc8 {[%emt 0:01:00]} 65. Ke4 {[%emt 0:00:22]} Kd8 {[%emt 0:00:15]} 66. Kf5 {[%emt 0:00:19]} Kc8 {[%emt 0:00:11]} 67. Be5 {[%emt 0:00:11]} Bb4 {[%emt 0:00:09]} 68. Kf6 {[%emt 0:00:55]} Bd2 {[%emt 0:00:09]} 69. Bd6 {[%emt 0:00:40]} Be3 {[%emt 0:00:17]} 70. Kf5 {[%emt 0:00:26]} Bd2 {[%emt 0:02:07]} 71. Bh2 {[%emt 0:00:03]} Bb4 {[%emt 0:00:55]} 72. Bf4 {[%emt 0:01:02]} Be7 {[%emt 0:00:19]} 73. Ke5 {[%emt 0:00:12]} Kc7 {[%emt 0:00:22]} 74. Kd5+ {[%emt 0:00:02]} Kc8 {[%emt 0:00:07]} 75. Bd2 {[%emt 0:00:24]} Kc7 {[%emt 0:00:21]} 76. Be3 {[%emt 0:01:15]} Kc8 {[%emt 0:00:16]} 77. Bf4 {[%emt 0:00:37]} Kd8 {[%emt 0:00:21]} 78. a5 {[%emt 0:00:33]} Kc8 {[%emt 0:00:30]} 79. Ke4 {[%emt 0:00:06]} Bb4 {[%emt 0:00:53]} 80. Kf5 {[%emt 0:00:18]} Bxa5 {[%emt 0:00:13]} 81. Kf6 {[%emt 0:00:16]} Bd8+ {[%emt 0:00:05]} 82. Kxf7 {[%emt 0:00:15]} Bxg5 {[%emt 0:00:04]} 83. Bxg5 {[%emt 0:00:02]} Kc7 {[%emt 0:00:06]} 84. Bd2 {[%emt 0:00:11]} Kxc6 {[%emt 0:00:04]} 85. Ke6 {[%emt 0:00:03]} Kb5 {[%emt 0:00:07]} 86. Kd5 {[%emt 0:00:01]} a5 {[%emt 0:00:05]} 87. Bxa5 {[%emt 0:00:04]} Kxa5 {[%emt 0:00:33]} 88. Ke4 1/2-1/2

[Event "2nd Kalyan Dombivali 2019"]
[Site "Kalyan"]
[Date "2019.02.01"]
[Round "7"]
[White "Saranya, J."]
[Black "Midilesh MS"]
[Result "1-0"]
[ECO "B40"]
[WhiteElo "2094"]
[BlackElo "1558"]
[Annotator "NA"]
[PlyCount "81"]
[EventDate "2019.01.28"]
[EventType "swiss"]
[EventRounds "10"]
[EventCountry "IND"]
[SourceTitle "playchess.com"]
[Source "ChessBase"]
[SourceQuality "1"]
[TimeControl "5400+30"]

1. e4 {[%emt 0:08:48]} c5 {[%emt 0:00:00]} 2. Nf3 {[%emt 0:00:30]} e6 {[%emt 0:00:00]} 3. d3 {[%emt 0:00:58]} a6 {[%emt 0:00:30]} 4. g3 {[%emt 0:00:39]} b5 {[%emt 0:00:07]} 5. Bg2 {[%emt 0:00:06]} Bb7 {[%emt 0:00:11]} 6. Nbd2 {[%emt 0:00:15]} d6 {[%emt 0:01:05]} 7. O-O {[%emt 0:00:16]} Nd7 {[%emt 0:00:17]} 8. c3 {[%emt 0:00:37]} Ngf6 {[%emt 0:00:27]} 9. Re1 {[%emt 0:03:33]} Be7 {[%emt 0:03:02]} 10. d4 {[%emt 0:08:48]} cxd4 {[%emt 0:15:24]} 11. cxd4 {[%emt 0:06:01]} e5 {[%emt 0:03:31]} 12. b3 {[%emt 0:04:06]} Qb6 {[%emt 0:17:22]} 13. Bb2 {[%emt 0:02:44]} O-O {[%emt 0:00:39]} 14. Qe2 {[%emt 0:03:13]} exd4 {[%emt 0:12:07]} 15. Bxd4 {[%emt 0:01:27]} Qa5 {[%emt 0:00:43]} 16. a3 {[%emt 0:06:27]} Rad8 {[%emt 0:08:09]} 17. Nh4 {[%emt 0:07:02]} Rfe8 {[%emt 0:05:47]} 18. Rec1 {[%emt 0:03:55]} Bf8 {[%emt 0:10:43]} (18... Rc8 $14) 19. b4 {[%emt 0:15:03]} Qa4 {[%emt 0:00:04]} 20. Qe1 {[%emt 0:01:55]} Rc8 {[%emt 0:09:35] [#]} 21. Bf3 $1 {[%emt 0:01:35]} Rc2 {[%emt 0:04:41]} 22. Nf5 {[%emt 0:04:27]} Rec8 $18 {[%emt 0:05:43]} 23. Rcb1 {[%emt 0:00:12]} Ne5 24. Bxe5 {[%emt 0:00:14]} dxe5 {[%emt 0:00:52]} 25. Bd1 {[%emt 0:00:54]} Rd8 {[%emt 0:00:57]} 26. Ne3 {[%emt 0:05:25]} Rdxd2 {[%emt 0:00:25]} 27. Nxc2 {[%emt 0:00:35]} Rxc2 {[%emt 0:00:08]} 28. f3 {[%emt 0:00:26]} g6 {[%emt 0:00:58]} 29. Qe3 {[%emt 0:00:22]} Kg7 {[%emt 0:00:31]} 30. Qd3 {[%emt 0:00:33]} Bc8 {[%emt 0:00:30]} 31. Bxc2 {[%emt 0:00:08]} Qxc2 {[%emt 0:00:14]} 32. Qxc2 {[%emt 0:00:02]} Be6 {[%emt 0:00:01]} 33. Qc3 {[%emt 0:00:22]} Nd7 {[%emt 0:00:59]} 34. Rd1 {[%emt 0:00:07]} f6 {[%emt 0:00:04]} 35. Qc7 {[%emt 0:00:11]} Be7 {[%emt 0:00:07]} 36. Rxd7 {[%emt 0:00:04]} Bxd7 {[%emt 0:00:05]} 37. Qxd7 {[%emt 0:00:04]} Kf7 {[%emt 0:00:05]} 38. Rc1 {[%emt 0:00:02]} h5 {[%emt 0:00:07]} 39. Rc7 {[%emt 0:00:04]} Kg8 {[%emt 0:00:04]} 40. Qxe7 {[%emt 0:00:04]} h4 {[%emt 0:00:11]} 41. Qg7# {[%emt 0:00:02]} 1-0

[Event "2nd Kalyan Dombivali 2019"]
[Site "Kalyan"]
[Date "2019.02.01"]
[Round "7"]
[White "Ahmed, Feroz"]
[Black "Lund Rachit"]
[Result "0-1"]
[ECO "A14"]
[WhiteElo "1919"]
[BlackElo "1572"]
[Annotator "NA"]
[PlyCount "87"]
[EventDate "2019.01.28"]
[EventType "swiss"]
[EventRounds "10"]
[EventCountry "IND"]
[SourceTitle "playchess.com"]
[Source "ChessBase"]
[SourceQuality "1"]
[TimeControl "5400+30"]

{[%evp 8,84,20,10,18,15,0,32767,0,1,32767,0,0,-27,32767,-109,-65,-111,-21,-13,-15,-75,-41,-68,32767,-18,4,-48,-16,0,0,-430,-370,-480,-498,-621,-621,-627,-435,32767,-801,-755,-414,32767,32767,32767,32767,-277,-176,-198,-206,-562,-596,-586,-688,32767,32767,-740,-106,-116,32767,-112,-120,32767,32767,-679,-824,-781,32767,-232,32767,32767,32767,32767,32767,-326,-369,-980,-1038]} 1. c4 {[%emt 0:00:00]} Nf6 {[%emt 0:00:31]} 2. g3 {[%emt 0:00:00]} e6 {[%emt 0:01:24]} 3. Bg2 {[%emt 0:00:00]} d5 {[%emt 0:00:45]} 4. Nf3 {[%emt 0:00:06]} Be7 {[%emt 0:02:05]} 5. O-O {[%emt 0:01:01]} O-O {[%emt 0:00:40]} 6. d4 {[%emt 0:00:42]} dxc4 {[%emt 0:05:33]} 7. Qa4 {[%emt 0:04:17]} a6 {[%emt 0:01:35]} 8. Qxc4 {[%emt 0:00:12]} b5 {[%emt 0:00:16]} 9. Qc2 {[%emt 0:01:07]} Bb7 {[%emt 0:00:38]} 10. Nbd2 {[%emt 0:01:15] LiveBook: 23 Games} Nbd7 {[%emt 0:09:13]} 11. a3 {[%emt 0:04:19]} (11. Ne5 $11 Bxg2 12. Kxg2) 11... c5 {[%emt 0:03:30]} 12. dxc5 {[%emt 0:02:40]} Bxc5 {[%emt 0:04:54]} 13. b4 {[%emt 0:04:19]} Be7 {[%emt 0:02:19]} 14. Nb3 {[%emt 0:05:30]} (14. Bb2 $11) 14... Rc8 {[%emt 0:01:22]} 15. Qd3 {[%emt 0:00:37]} e5 {[%emt 0:06:54]} 16. Na5 {[%emt 0:11:25]} Bd5 {[%emt 0:07:33]} 17. Qe3 {[%emt 0:01:34]} e4 {[%emt 0:11:05]} 18. Nd4 {[%emt 0:05:23]} Ne5 {[%emt 0:07:03]} 19. Bb2 $2 {[%emt 0:01:08]} (19. Nf5 $11 {and White is okay.}) 19... Nfg4 {[%emt 0:01:37]} 20. Qd2 {[%emt 0:02:39] [#]} e3 $1 {[%emt 0:00:34]} 21. fxe3 {[%emt 0:00:31]} Bxg2 {[%emt 0:00:13]} 22. Kxg2 {[%emt 0:09:22]} Bg5 {[%emt 0:04:58]} 23. Rf4 {[%emt 0:04:28]} (23. Nf3 $142 Nxe3+ 24. Kh1 Qxd2 25. Nxd2 Nxf1 26. Nxf1) 23... Bxf4 {[%emt 0:01:54] Decoy} 24. exf4 {[%emt 0:00:36]} Qd5+ {[%emt 0:00:39] Decoy} ({Less strong is} 24... Nc4 25. Nxc4 bxc4 26. h3 $19) 25. Kg1 {[%emt 0:06:47]} Nc4 {[%emt 0:00:41]} 26. Nxc4 {[%emt 0:00:47]} bxc4 {[%emt 0:00:21]} 27. Qc3 {[%emt 0:03:41]} Nf6 {[%emt 0:00:41]} 28. Nf3 {[%emt 0:03:24]} Rfe8 {[%emt 0:01:31]} 29. Qc2 $2 {[%emt 0:04:19] [#]} (29. Re1 {is more resistant.}) 29... c3 $1 {[%emt 0:00:38]} 30. Bc1 {[%emt 0:01:26]} Rcd8 {[%emt 0:05:35]} 31. Ra2 {[%emt 0:02:25]} Ne4 {[%emt 0:03:25]} 32. Kf1 {[%emt 0:03:43]} Nd2+ $2 {[%emt 0:00:19]} (32... Qc6 $19 {has better winning chances.} 33. Kg1 Nd2) 33. Bxd2 {[%emt 0:00:49]} cxd2 {[%emt 0:00:38]} 34. Qxd2 {[%emt 0:00:32]} Qe6 {[%emt 0:01:13]} 35. Qb2 {[%emt 0:02:42]} Qh3+ {[%emt 0:00:31]} 36. Ke1 {[%emt 0:03:07]} Qg2 {[%emt 0:01:05]} 37. Qb3 {[%emt 0:01:11]} Qh1+ $2 {[%emt 0:01:54]} (37... g6 38. a4 Re6) 38. Kf2 {[%emt 0:00:05]} Rd1 {[%emt 0:00:10]} 39. Ne5 {[%emt 0:00:45]} Qxh2+ {[%emt 0:01:14]} 40. Kf3 {[%emt 0:00:05]} Qh5+ {[%emt 0:07:22]} 41. Kf2 {[%emt 0:01:05]} Rh1 {[%emt 0:00:50]} 42. Qf3 $2 {[%emt 0:01:12]} (42. Rd2 g5 43. Qd5) 42... Qh3 $19 {[%emt 0:02:03]} 43. Ke3 f6 44. Kf2 0-1

[Event "2nd Kalyan Dombivali 2019"]
[Site "Kalyan"]
[Date "2019.02.01"]
[Round "7"]
[White "Sparsh Khandelwal"]
[Black "Tikam Aradhya"]
[Result "1-0"]
[ECO "C23"]
[WhiteElo "1823"]
[BlackElo "1332"]
[Annotator "NA RC"]
[PlyCount "63"]
[EventDate "2019.01.28"]
[EventType "swiss"]
[EventRounds "10"]
[EventCountry "IND"]
[SourceTitle "playchess.com"]
[Source "ChessBase"]
[SourceQuality "1"]
[TimeControl "5400+30"]

{[%evp 11,61,-16,9,-4,14,18,15,9,13,22,21,11,13,0,0,0,0,-8,0,0,0,0,0,6,15,5,32767,0,30,7,32767,-129,43,49,65,35,171,170,172,32767,32767,32767,32767,32767,32767,32767,32767,32767,32767,32767,32767,539]} 1. e4 {[%emt 0:00:00]} e5 {[%emt 0:00:00]} 2. Bc4 {[%emt 0:00:00]} Bc5 {[%emt 0:00:00]} 3. Nc3 {[%emt 0:00:04]} Nf6 {[%emt 0:00:16]} 4. d3 {[%emt 0:00:06]} h6 {[%emt 0:00:08]} 5. h3 {[%emt 0:00:07]} d6 {[%emt 0:01:25]} 6. Nge2 {[%emt 0:01:13]} Nc6 {[%emt 0:00:45]} 7. O-O {[%emt 0:00:26]} Be6 {[%emt 0:02:11]} 8. Bxe6 {[%emt 0:02:17]} fxe6 {[%emt 0:00:37]} 9. Na4 {[%emt 0:00:03]} Bb6 {[%emt 0:01:05]} 10. Nxb6 {[%emt 0:00:21]} axb6 {[%emt 0:00:05]} 11. f4 {[%emt 0:00:07]} O-O {[%emt 0:02:00]} 12. c3 {[%emt 0:03:18]} exf4 {[%emt 0:02:10]} 13. Nxf4 {[%emt 0:00:07]} Qe8 {[%emt 0:01:09]} 14. a3 {[%emt 0:03:46]} e5 {[%emt 0:00:42]} 15. Qb3+ {[%emt 0:00:05]} Kh7 {[%emt 0:01:20]} 16. Ne2 {[%emt 0:00:17]} Qf7 {[%emt 0:06:51]} 17. Qc2 {[%emt 0:03:19]} Rae8 {[%emt 0:03:39]} 18. Be3 {[%emt 0:03:35]} Qg6 {[%emt 0:01:41]} 19. Kh2 {[%emt 0:05:39]} Re7 {[%emt 0:06:17]} 20. Ng3 {[%emt 0:11:14]} Nh5 {[%emt 0:08:06]} 21. Nf5 $2 {[%emt 0:01:27]} (21. Nxh5 $14 {stays ahead.} Rxf1 22. Rxf1 Qxh5 23. Rf5) 21... Ref7 $2 {[%emt 0:00:15]} ({Black should try} 21... Rxf5 $1 $17 22. Rxf5 Qg3+ 23. Kh1 Qxe3 24. Rxh5 g6) 22. Qe2 {[%emt 0:01:40]} Nf6 {[%emt 0:03:45]} 23. g4 {[%emt 0:01:48]} Nd7 {[%emt 0:06:22]} ({Black should play} 23... Kh8 $14) 24. Rg1 {[%emt 0:05:36]} Qe6 {[%emt 0:08:09]} 25. g5 {[%emt 0:04:54]} Rxf5 {[%emt 0:00:24]} 26. exf5 {[%emt 0:00:17]} Qxf5 {[%emt 0:00:59]} 27. Raf1 {[%emt 0:00:26]} Qe6 {[%emt 0:00:40]} 28. Rxf8 {[%emt 0:00:59]} Nxf8 {[%emt 0:00:03]} 29. gxh6 {[%emt 0:00:07]} gxh6 {[%emt 0:00:51]} 30. Qh5 {[%emt 0:00:06]} Ne7 {[%emt 0:02:47]} 31. Rf1 $18 {[%emt 0:00:52]} Kg7 {[%emt 0:02:09]} 32. Bxh6+ {[%emt 0:00:18]} 1-0

[Event "2nd Kalyan Dombivali 2019"]
[Site "Kalyan"]
[Date "2019.02.01"]
[Round "7"]
[White "Subramanian, R M"]
[Black "Kamble Dipankar"]
[Result "1-0"]
[ECO "B23"]
[WhiteElo "1780"]
[BlackElo "1487"]
[Annotator "NA RC"]
[PlyCount "63"]
[EventDate "2019.01.28"]
[EventType "swiss"]
[EventRounds "10"]
[EventCountry "IND"]
[SourceTitle "playchess.com"]
[Source "ChessBase"]
[SourceQuality "1"]
[TimeControl "5400+30"]

1. e4 {[%emt 0:00:00]} c5 {[%emt 0:08:02]} 2. Nc3 {[%emt 0:00:00]} d6 {[%emt 0:07:23]} 3. f4 {[%emt 0:00:16]} Nc6 {[%emt 0:01:45]} 4. Nf3 {[%emt 0:00:07]} g6 {[%emt 0:00:13]} 5. Bb5 {[%emt 0:00:06]} Bg7 {[%emt 0:01:33]} 6. O-O {[%emt 0:00:10]} a6 {[%emt 0:00:22]} 7. Bxc6+ {[%emt 0:00:05]} bxc6 {[%emt 0:00:07]} 8. d3 {[%emt 0:00:13]} Nh6 {[%emt 0:09:16]} 9. Qe1 {[%emt 0:01:28]} f5 {[%emt 0:03:03]} 10. e5 {[%emt 0:00:19]} O-O {[%emt 0:12:51]} 11. h3 {[%emt 0:01:11]} e6 {[%emt 0:10:28]} 12. Be3 {[%emt 0:03:04]} dxe5 {[%emt 0:09:37]} 13. Nxe5 {[%emt 0:01:11]} Bxe5 {[%emt 0:10:22]} 14. fxe5 {[%emt 0:00:37]} Nf7 {[%emt 0:00:03]} 15. Bxc5 {[%emt 0:01:57]} Re8 {[%emt 0:01:15]} 16. Na4 {[%emt 0:02:54]} Rb8 {[%emt 0:01:34]} 17. b3 {[%emt 0:01:58]} a5 {[%emt 0:05:41]} 18. Qe3 {[%emt 0:03:21]} Qg5 {[%emt 0:07:54]} 19. Qxg5 {[%emt 0:02:49]} Nxg5 {[%emt 0:00:03]} 20. Nb6 {[%emt 0:00:40]} Nf7 {[%emt 0:02:50]} 21. Rae1 {[%emt 0:00:07]} Rd8 {[%emt 0:01:44]} 22. Rf4 {[%emt 0:00:16]} Ba6 {[%emt 0:01:19]} 23. Ra4 {[%emt 0:00:25]} Bxd3 {[%emt 0:02:02]} 24. cxd3 {[%emt 0:00:59]} Rxd3 {[%emt 0:00:02]} 25. Rxa5 {[%emt 0:00:57]} Ng5 {[%emt 0:00:38]} 26. Ra7 {[%emt 0:01:23]} Ne4 {[%emt 0:00:34]} 27. Rxe4 {[%emt 0:00:02]} fxe4 {[%emt 0:00:35]} 28. Nd7 {[%emt 0:00:02]} Rxd7 {[%emt 0:01:56]} 29. Rxd7 {[%emt 0:00:02]} Ra8 {[%emt 0:00:13]} 30. a4 {[%emt 0:00:06]} Ra5 {[%emt 0:00:18]} 31. Bd6 {[%emt 0:00:47]} Rd5 {[%emt 0:00:52]} 32. Kf2 {[%emt 0:00:28]} 1-0